Cogmind - Beta 10.2 @@@ ROGUE MODE // 2020.11.21 @ 01:21:21 // Halloween2020/ForbiddenLore Player: ILikeVoltron Result: Destroyed by G-34 Mercenary with Small Laser Performance ------------- Evolutions (1) 500 Regions Visited (2) 400 Robots Destroyed (27) 135 Value Destroyed (483) 483 Prototype IDs (2) 40 Alien Tech Used (0) 0 Bonus (0) 0 TOTAL SCORE: 1558 Bonus ------- None Cogmind --------- Core Integrity 0/400 Matter 240/300 Energy 100/100 System Corruption 0% Temperature Cool (6) Movement Core (1100) Ox21 Location -9/Materials Parts ------- > --- POWER (1) -------- (None) > --- PROPULSION (2) --- (None) > --- UTILITY (4) ------ High-capacity Storage Unit High-capacity Storage Unit > --- WEAPON (2) ------- (None) > --- INVENTORY (20) --- Light Ion Engine Light Treads Wheel Hover Unit Flight Unit Flight Unit High-capacity Storage Unit Visual Processing Unit Signal Interpreter Light Armor Plating Welding Torch Peak State ------------ > --- POWER ------------ Light Ion Engine > --- PROPULSION ------- Light Treads Light Treads > --- UTILITY ---------- High-capacity Storage Unit Light Armor Plating Hardened Light Armor Plating Integration Mediator > --- WEAPON ----------- Beam Cannon Beam Cannon > --- INVENTORY -------- Light Ion Engine Light Ion Engine Wheel Hover Unit Visual Processing Unit Signal Interpreter Light Armor Plating Assault Rifle Light Assault Rifle Grenade Launcher Grenade Launcher Welding Torch [Rating: 12] Favorites ----------- Power Light Ion Engine Engine Light Ion Engine Propulsion Light Treads Treads Light Treads Leg Aluminum Leg Utility High-capacity Storage Unit Device Field Recycling Unit Storage High-capacity Storage Unit Processor Signal Interpreter Protection Hardened Light Armor Plating Weapon Beam Cannon Energy Gun Medium Laser Energy Cannon Beam Cannon Ballistic Gun Assault Rifle Launcher Grenade Launcher Special Weapon Welding Torch Build | -11 -10 -9 ------- Run | Scr Mat Mat Slots Evolved 2 | . . 2 Power . | . . . Propulsion . | . . . Utility 2 | . . 2 Weapon . | . . . Parts Attached 30 | . 10 20 Power 6 | . 3 3 Engine 6 | . 3 3 Core . | . . . Reactor . | . . . Propulsion 4 | . 2 2 Treads 4 | . 2 2 Leg . | . . . Wheel . | . . . Hover . | . . . Flight . | . . . Utility 10 | . 3 7 Device 3 | . 1 2 Storage 2 | . 1 1 Processor 1 | . 1 . Hackware . | . . . Protection 4 | . . 4 Artifact . | . . . Weapon 10 | . 2 8 Energy Gun . | . . . Energy Cannon 4 | . 2 2 Ballistic Gun 1 | . . 1 Ballistic Cannon . | . . . Launcher 4 | . . 4 Special Weapon 1 | . . 1 Impact Weapon . | . . . Slashing Weapon . | . . . Piercing Weapon . | . . . Special Melee Weapon . | . . . Unidentified Prototypes . | . . . Parts Lost 12 | . . 12 Power 2 | . . 2 Propulsion 2 | . . 2 Utility 3 | . . 3 Weapon 5 | . . 5 Highest Loss Streak 7 | . . 7 Average Slot Usage (%) 94 | . 97 91 Engine 11 | . 13 10 Treads 17 | . 12 20 Leg 6 | . 13 . Device 8 | . 4 11 Storage 15 | . 14 16 Processor 4 | . 8 . Protection 7 | . . 14 Energy Gun 5 | . 11 . Energy Cannon 6 | . 4 8 Ballistic Gun 7 | . 11 2 Special Weapon 1 | . . 3 Naked Turns . | . . . Heaviest Build 84 | 13 41 84 Greatest Support 40 | 20 40 40 Greatest Overweight (x) 23 | . 2 23 Average Overweight (x) . | . . 1 Largest Inventory Capacity 20 | . 12 20 Average Capacity 12 | . 9 15 Most Carried 13 | . 12 13 Average Carried 9 | . 7 10 Final Capacity 20 | 6 12 20 Final Carried 12 | 6 12 11 Class Distribution -------------------- 75% | Mutant 24% | Hauler-Mutant Dominant Class ---------------- Mutant | -10/Materials Mutant | -9/Materials Resources | -11 -10 -9 ----------- Run | Scr Mat Mat Matter Collected 561 | 195 201 165 Remotely . | . . . Salvage Created 726 | . 350 376 Parts 44 | . 24 20 Haulers Intercepted 2 | . 1 1 Recyclers Shooed 1 | . 1 . Parts Field Recycled 8 | . . 8 Retrieved Matter 55 | . . 55 Parts Self-Destructed . | . . . Prevented . | . . . Kills | -11 -10 -9 ------- Run | Scr Mat Mat Combat Hostiles Destroyed 17 | . 5 12 Guns 7 | . 5 2 Cannons 3 | . . 3 AOE 6 | . . 6 Classes Destroyed 9 | . 7 2 Worker 2 | . 1 1 Builder 3 | . 2 1 Hauler 2 | . 1 1 Recycler 2 | . 1 1 Watcher 1 | . 1 . Swarmer 7 | . 3 4 Grunt 7 | . 2 5 Brawler 1 | . . 1 Sentry 2 | . . 2 Best Kill Streak 4 | . 4 4 Combat Bots Only 4 | . 2 4 Max Kills in Single Turn 2 | . 1 2 Gunslinging . | . . . Exploded 2 | . . 2 Melee . | . . . Uniques/NPCs Destroyed . | . . . Combat | -11 -10 -9 -------- Run | Scr Mat Mat Damage Taken 1987 | . 300 1687 Core 460 | . 56 404 Absorbed by Shields . | . . . Core Remaining (%) 88 | 100 77 . Volleys Fired 91 | . 32 59 Largest 2 | . 2 2 Hottest 120 | . 70 120 Shots Fired 152 | . 64 88 Gun 88 | . 64 24 Cannon 35 | . . 35 Launcher 11 | . . 11 Special 18 | . . 18 Kinetic 56 | . 32 24 Thermal 85 | . 32 53 Explosive 11 | . . 11 Electromagnetic . | . . . Robot Hit Streak 8 | . 8 7 Robot Miss Streak 3 | . 3 3 Penetration Max . | . . . Secondary Targets . | . . . Shots Hit Robots 98 | . 43 55 Core Hits 46 | . 14 32 Critical Hits . | . . . Critical Kills . | . . . Critical Parts Destroyed . | . . . Melee Attacks . | . . . Impact . | . . . Slashing . | . . . Piercing . | . . . Sneak Attacks . | . . . Combat Hostiles . | . . . Follow-up Attacks . | . . . Damage Inflicted 1641 | . 527 1114 Guns 644 | . 527 117 Cannons 351 | . . 351 Explosions 606 | . . 606 Melee . | . . . Ramming 2 | . . 2 Kinetic 396 | . 279 117 Thermal 637 | . 248 389 Explosive 606 | . . 606 Electromagnetic . | . . . Impact . | . . . Slashing . | . . . Piercing . | . . . Highest Corruption . | . . . Average Corruption . | . . . Corruption Purged . | . . . Overload Shots . | . . . Overflow Damage 16 | . . 16 Projectiles 14 | . . 14 Explosions 2 | . . 2 Melee . | . . . Knockbacks . | . . . Impact . | . . . Kinetic . | . . . Secondary . | . . . Self-Inflicted Damage . | . . . Shots . | . . . Rammed 1 | . . 1 Targets Rammed 1 | . . 1 Kicked . | . . . Crushed . | . . . Highest Temperature 581 | . 96 581 Average Temperature 169 | . 30 229 Received Heat Transfer 504 | . 60 444 Effects 25 | . . 25 Shutdowns 5 | . . 5 Energy Bleed 6 | . . 6 Interference 10 | . . 10 Short Circuit 1 | . . 1 Damage (minor) 1 | . . 1 Damage (core) 2 | . . 2 Siege Activations . | . . . Robots Corrupted . | . . . Combat Hostiles . | . . . Parts Fried . | . . . Impact Corruptions . | . . . Robots Melted 1 | . . 1 Combat Hostiles 1 | . . 1 Parts Melted 6 | . 2 4 Heat Transferred 1805 | . 740 1065 Parts Sabotaged . | . . . Parts Stolen . | . . . Parts Stripped . | . . . Power Chain Reactions . | . . . Missiles Intercepted . | . . . Alert | -11 -10 -9 ------- Run | Scr Mat Mat Peak Influence 180 | . 119 180 Initial 23 | . . 23 Average 67 | . 63 71 Maximum Alert Level . | . . . Low Security (%) 100 | . 100 100 Level 1 . | . . . Level 2 . | . . . Level 3 . | . . . Level 4 . | . . . Level 5 . | . . . High Security . | . . . Max Security . | . . . Squads Dispatched 3 | . 1 2 Investigation 1 | . 1 . Extermination . | . . . Reinforcement 2 | . . 2 Assault . | . . . Garrison . | . . . Intercept . | . . . Construction Impeded . | . . . Haulers Reinforced . | . . . Stealth | -11 -10 -9 --------- Run | Scr Mat Mat Distress Signals 2 | . . 2 Communications Jammed . | . . . Distress Signals . | . . . Times Spotted 31 | . 6 25 Peak Tracking Total 6 | . 3 6 Tactical Retreats 1 | . . 1 Traps | -11 -10 -9 ------- Run | Scr Mat Mat Traps Triggered 2 | . 1 1 Indirectly . | . . . Trap Hack Attempts . | . . . Triggered . | . . . Disarmed . | . . . Reprogrammed . | . . . Reused . | . . . Traps Extracted . | . . . Installed . | . . . Triggered . | . . . Machines | -11 -10 -9 ---------- Run | Scr Mat Mat Machines Disabled . | . . . Max in Single Turn . | . . . Machines Sabotaged . | . . . Garrisons Compromised . | . . . Overloaded Fab Kills . | . . . Fab Network Shutdowns . | . . . Hacking | -11 -10 -9 --------- Run | Scr Mat Mat Machines Accessed 4 | . 3 1 Terminals 4 | . 3 1 Fabricators . | . . . Repair Stations . | . . . Recycling Units . | . . . Scanalyzers . | . . . Garrison Access . | . . . Total Hacks 13 | . 8 5 Successful 11 | . 8 3 Failed 2 | . . 2 Catastrophic . | . . . Database Lockouts . | . . . Manual 4 | . 4 . Terminals 13 | . 8 5 Fabricators . | . . . Repair Stations . | . . . Recycling Units . | . . . Scanalyzers . | . . . Garrison Access . | . . . Terminal Hacks 9 | . 6 3 Prototype ID Bank 1 | . 1 . Terminal Index 1 | . 1 . Alert Level 1 | . 1 . Locate Traps 2 | . 1 1 Transport Status 1 | . . 1 Hauler Manifests 2 | . 1 1 Zone Layout 1 | . 1 . Fabricator Hacks . | . . . Repair Station Hacks . | . . . Recycling Unit Hacks . | . . . Scanalyzer . | . . . Garrison Access Hacks . | . . . Unauthorized Hacks 2 | . 2 . Terminals 2 | . 2 . Track 1 | . 1 . Assimilate 1 | . 1 . Fabricators . | . . . Repair Stations . | . . . Recycling Units . | . . . Scanalyzers . | . . . Garrison Access . | . . . Data Cores Recovered . | . . . Used . | . . . Hacking Detections 2 | . 2 . Full Trace Events . | . . . Feedback Events . | . . . Feedback Blocked . | . . . Robot Schematics Acquired . | . . . Robots Built . | . . . Matter . | . . . Time . | . . . Total Robot Build Rating . | . . . Part Schematics Acquired . | . . . Parts Built . | . . . Matter . | . . . Time . | . . . Total Part Build Rating . | . . . Parts Repaired . | . . . Time . | . . . Parts Recycled . | . . . Recycled Matter . | . . . Retrieved Matter . | . . . Retrieved Components . | . . . Parts Scanalyzed . | . . . Part Schematics Acquired . | . . . Parts Damaged . | . . . Bothacking | -11 -10 -9 ------------ Run | Scr Mat Mat Used RIF Installer . | . . . Robots Hacked . | . . . Non-combat . | . . . Combat . | . . . Robot Hacks Applied . | . . . Relay Couplers Released . | . . . Robots Rewired . | . . . Allies Hacked . | . . . Hacks Repelled . | . . . Allies | -11 -10 -9 -------- Run | Scr Mat Mat Total Allies . | . . . Largest Group . | . . . Highest-Rated Group . | . . . Highest-Rated Ally . | . . . Total Orders . | . . . Ally Attacks . | . . . Total Damage . | . . . Kills . | . . . Allies Corrupted . | . . . Allies Melted . | . . . Intel | -11 -10 -9 ------- Run | Scr Mat Mat Robot Analysis Total . | . . . Derelict Logs Recovered . | . . . Drone Launches . | . . . Drone Recoveries . | . . . Exploration | -11 -10 -9 ------------- Run | Scr Mat Mat Turns Passed 1160 | . 557 603 Spaces Moved 495 | 1 293 201 Core 2 | . . 2 Treads 331 | . 132 199 Legs 162 | 1 161 . Wheels . | . . . Hover . | . . . Flight . | . . . Fastest Speed 120 | 120 120 180 Average Speed 167 | 120 146 198 Slowest Speed 1200 | 120 200 1200 Overloaded Moves . | . . . Propulsion Burnouts . | . . . Robots Hopped . | . . . Cave-ins Triggered . | . . . Exploration Rate (%) 18 | 2 35 19 Regions Visited 2 Branch Regions . Pre-discovered Areas . | . . . Known Exits Taken 1 | . 1 . Unknown Exits Taken 1 | 1 . . Scrap Searched . | . . . Spaces Dug . | . . . Terrain Destroyed 37 | . . 37 Melee . | . . . Projectile . | . . . AOE 37 | . . 37 Terrain Rammed . | . . . Walls Destroyed . | . . . Machines Disabled . | . . . Actions | -11 -10 -9 --------- Run | Scr Mat Mat Total 682 | . 362 320 Wait 24 | . 1 23 Move 493 | . 292 201 Hop . | . . . Pick Up 18 | . 10 8 Fast Attach 8 | . 6 2 Attach 8 | . 1 7 Detach 6 | . 5 1 Swap 14 | . 3 11 Drop 19 | . 12 7 Fire 91 | . 32 59 Melee . | . . . Ram . | . . . Kick . | . . . Crush 1 | . . 1 Escape Stasis . | . . . Rewire . | . . . Trap . | . . . Miscellaneous . | . . . Route ------- -11/Scrapyard -10/Materials -9/Materials History --------- Turn | Location | Event 1 | -11/Scrapyard | Discovered new exit (range 0) 1 | -11/Scrapyard | Entered Materials 153 | -10/Materials | Discovered new exit (range 16) 301 | -10/Materials | Build established: Mutant 556 | -10/Materials | Identified exit to Materials 558 | -10/Materials | Entered another Materials area 558 | -9/Materials | Evolved 2 slots: Utility x2 938 | -9/Materials | Lost 3 parts (1u2w) 1105 | -9/Materials | Core integrity fell below 50% 1151 | -9/Materials | Core integrity fell below 20% 1161 | -9/Materials | Destroyed by G-34 Mercenary with Small Laser Last Messages --------------- 01109_ U-05 Engineer lays Concrete. 01109_ Grenade Launcher destroyed. 01110_ U-05 Engineer builds a Wall. 01112_ ALERT: Hostiles spotted, dispatching reinforcements to Terminal M009. 01113_ Grenade Launcher destroyed. 01116_ U-05 Engineer builds a Door. 01120_ U-05 Engineer lays Concrete. 01122_ U-05 Engineer builds a Wall. 01128_ Triggered Blade Trap. 01128_ Massive razor-sharp blades shoot up from within the floor. 01128_ Hrd. Light Armor Plating severed. 01129_ Lgt. Treads destroyed. 01133_ R-06 Scavenger collects Hrd. Light Armor Plating. 01136_ Lgt. Ion Engine destroyed. 01142_ Lgt. Treads destroyed. 01149_ S-10 Pest destroyed. 01157_ Field Recycling Unit destroyed. 01159_ R-06 Scavenger collects Lgt. Assault Rifle. 01159_ K-01 Serf collects debris. [Achievement: Just Browsing] Map ----- +----------------------------------------------------+ | ??????? ?????# #????????? ### ?????????????? | | ????????# ????# #????????? ????????????? | | ????????# ???# #???????? ????????????? | | ????????# #### #???????? ??????????????? | | ????????# #???????? ???#??????????? | | ????????# #####???# """ ???????????? | | ????????# """ #??????????? | | ????????+ ###+########### % """ +??????????? | | ????????# ??# ## #??????????? | | ????????# ???# ## # #??????????? | | ????????#????# """ ## """ #???????????? | | ?????????????# """ # """ #???????????? | | ?????????????# """ ######+## """ +???????????? | | ?????????????# / #???????????? | | ?????????????######### #???????????? | | ????????????????????#### ## ######???????????? | | ????????????????????# # #????????????????? | | ????????????????????# "T" /^^^#????????????????? | | ????????????????????# # ^^#????????????????? | | ????????????????######g###### ##???????????????? | | ????????????????# g #?# #???????????????? | | ????????????????# ### #???????????????? | | ???????????????## s r T +???????????????? | | ???????????????# o%s## # ??????????????? | | ???????????????## ## # ?????????????? | | ???????????????# % k@########???????????????? | | ???????????????# #??????????????????????? | | ???????????????# #??????????????????????? | | ???????????????# #??????????????????????? | | ???????????????# =! #??????????????????????? | | ???????????????# =! ??????????????????????? | | ???????????????##g ??????????????????????? | | ??????????????? ?????????????????????? | | ?????????????? ?????????????????????? | | ?????????????# ??????????????????????? | | ??????????????##+## ??????????????????????? | | ??????????????????# #??????????????????????? | | ??????????????????####+###???????????????????????? | | ?????????????????????????????????????????????????? | | ?????????????????????????????????????????????????? | | ?????????????????????????????????????????????????? | | ?????????????????????????????????????????????????? | | ?????????????????????????????????????????????????? | | ?????????????????????????????????????????????????? | | ?????????????????????????????????????????????????? | | ?????????????????????????????????????????????????? | | ?????????????????????????????????????????????????? | | ?????????????????????????????????????????????????? | | ?????????????????????????????????????????????????? | | ?????????????????????????????????????????????????? | +----------------------------------------------------+ Best States ------------- Heat Dissipation 28 Energy Generation 10 Energy Capacity 250 Matter Stores 300 Matter Capacity 300 Sight Range 16 Terrain Scan Range 14 Terrain Scan Density 10 Armor Coverage 300 Evasion (%) 40 Recoil Reduction 2 Item Schematics ----------------- None Robot Schematics ------------------ None Fabricated ------------ Nothing Alien Tech Used ----------------- None Achievements -------------- Just Browsing Challenges ------------ None Game ------ Seed ReactiveBarrageImmobilizer Manual? 0 Play Time 00:21:58 Cumulative 29.3 hours Start 2020.11.21 @ 01:00:06 End 2020.11.21 @ 01:21:21 Sessions 1 Manual Loads 0 Difficulty Rogue Special Mode Halloween2020/ForbiddenLore Game No. 33 Rogue 29 Adventurer 0 Explorer 4 Win Type - Total 0 Types 0/0/0/0/0/0/0/0/0 Lore% 15 Gallery% 25 Achievement% 21 Wizard Run 0 Options --------- ASCII 0 Keyboard 1 Movement Arrows Keybinds 0 Fullscreen 1 Font 24/Cog Map View 113x50 Tactical HUD 1 Map Filters NONE Filters NONE Steam 1 RUN: dacff596-b1d6-49ee-9e8d-1107ff7b3088